bitfinex/quotes_BTCUSD_20260308
["timestamp","ask_amount","ask_price","bid_price","bid_amount"]
[1772966311595,0.00170001,67954.0,67946.0,0.07358784]
[1772966311996,0.00022001,67954.0,67946.0,0.07358784]
[1772966312179,0.00170001,67954.0,67946.0,0.07358784]
[1772966312384,0.00170001,67954.0,67946.0,0.0734199]
[1772966312607,0.07527938,67954.0,67946.0,0.0734199]
[1772966312811,0.07527938,67954.0,67946.0,0.07325197]
[1772966313014,0.00148,67957.0,67946.0,0.07325197]
[1772966313902,0.00148,67956.0,67946.0,0.07325197]
[1772966314518,0.01890613,67960.0,67946.0,0.07325197]
[1772966314754,0.00148,67956.0,67946.0,0.08874403]
[1772966315032,0.00148,67956.0,67946.0,0.07325197]
[1772966315849,0.00148,67956.0,67944.0,0.07358784]
[1772966316413,0.07505704,67956.0,67944.0,0.07358784]
[1772966316745,0.00148,67956.0,67944.0,0.07358784]
[1772966316956,0.07505712,67956.0,67944.0,0.07358784]
[1772966317250,0.00148,67956.0,67944.0,0.07358784]
[1772966317432,0.07505808,67956.0,67944.0,0.07358784]
[1772966317632,0.00148,67955.0,67944.0,0.07358784]
[1772966318818,0.0750582,67955.0,67944.0,0.07358784]
[1772966319226,0.01862718,67954.0,67944.0,0.07341991]
[1772966322605,0.01862718,67952.0,67943.0,0.07358784]
[1772966323159,0.07357288,67960.0,67944.0,0.1229256]
[1772966323380,0.00148,67959.0,67947.0,0.01905165]
[1772966323561,0.00148,67959.0,67947.0,0.14197725]
[1772966323783,0.00148,67958.0,67947.0,0.14197725]
[1772966324118,0.00148,67958.0,67943.0,0.07358784]
[1772966324263,0.00148,67957.0,67943.0,0.07358784]
[1772966324462,0.02010718,67957.0,67943.0,0.07358784]
[1772966324791,0.00148,67956.0,67943.0,0.21559016]
[1772966328835,0.00148,67956.0,67943.0,0.21579016]
[1772966329635,0.00148,67956.0,67944.0,0.1333247]
[1772966330696,0.00148,67955.0,67945.0,0.20693187]
[1772966331056,0.00148,67955.0,67945.0,0.07358893]
[1772966331258,0.01862718,67954.0,67945.0,0.07358893]
[1772966331796,0.01862718,67954.0,67943.0,0.0002]
[1772966332111,0.01862718,67952.0,67943.0,0.0002]
[1772966332663,0.01862718,67949.0,67937.0,0.0002]
[1772966332943,0.01862718,67947.0,67937.0,0.0002]
[1772966334813,0.09221477,67947.0,67937.0,0.0002]
[1772966335017,0.00148,67946.0,67937.0,0.0002]
[1772966337637,0.07506855,67946.0,67937.0,0.0002]
[1772966338429,0.00148,67946.0,67937.0,0.0002]
[1772966338726,0.01862718,67945.0,67937.0,0.0002]
[1772966339372,0.0750685,67946.0,67937.0,0.0002]
[1772966339866,0.07357976,67954.0,67937.0,0.0002]
[1772966340072,0.00148,67953.0,67939.0,0.01950109]
[1772966340278,0.00148,67952.0,67939.0,0.01950109]
[1772966340445,0.00148,67951.0,67939.0,0.01950109]
[1772966341674,0.07358351,67950.0,67940.0,0.07359434]
[1772966341874,0.07358351,67950.0,67939.0,0.09309552]
[1772966342685,0.07358351,67950.0,67939.0,0.07359443]
[1772966343661,0.07358351,67950.0,67938.0,2.4e-06]
[1772966343879,0.07358351,67950.0,67938.0,0.02086358]
[1772966344712,0.00148,67949.0,67938.0,0.02086358]
[1772966344867,0.07358151,67952.0,67938.0,0.02086358]
[1772966345069,0.07358151,67952.0,67940.0,0.02086118]
[1772966345450,0.07379688,67957.0,67940.0,0.02086118]
[1772966345633,0.07379688,67957.0,67943.0,0.11608266]
[1772966345837,0.00148,67955.0,67946.0,0.02086118]
[1772966346603,0.00148,67954.0,67946.0,0.02086118]
[1772966347968,0.00148,67955.0,67948.0,0.02086118]
[1772966348761,0.00148,67954.0,67945.0,0.07358893]
[1772966348966,0.00148,67954.0,67943.0,0.07359044]
[1772966349162,0.12767262,67953.0,67943.0,0.07359044]
[1772966349468,0.02104946,67952.0,67932.0,0.07360231]
[1772966349625,0.02104946,67951.0,67932.0,0.07360231]
[1772966349825,0.12767262,67952.0,67931.0,0.07360409]
[1772966349826,0.12767262,67948.0,67931.0,0.07360409]
[1772966350147,0.12767262,67946.0,67930.0,0.09570548]
[1772966350350,0.02104946,67945.0,67930.0,0.09570548]
[1772966350518,0.00148,67944.0,67930.0,0.09570548]
[1772966350716,0.00148,67944.0,67930.0,0.09422548]
[1772966351344,0.02252946,67944.0,67930.0,0.09422548]
[1772966352830,0.07359109,67943.0,67930.0,0.07360412]
[1772966353026,0.02104946,67942.0,67930.0,0.07360412]
[1772966353916,0.02116901,67942.0,67930.0,0.07360412]
[1772966354761,0.02116901,67942.0,67930.0,0.09422548]
[1772966354762,0.00011955,67942.0,67930.0,0.09422548]
[1772966355094,0.02116901,67942.0,67930.0,0.07360412]
[1772966355538,0.02116901,67942.0,67928.0,0.07360518]
[1772966355715,0.02116901,67942.0,67928.0,0.07360649]
[1772966355918,0.02104946,67940.0,67928.0,0.07360649]
[1772966356580,0.12767262,67940.0,67926.0,0.07360734]
[1772966356708,0.02104946,67939.0,67926.0,0.07360734]
[1772966356914,0.00148,67938.0,67926.0,0.07360734]
[1772966357122,0.07359759,67937.0,67928.0,0.0002]
[1772966358764,0.12767262,67935.0,67925.0,0.00188]
[1772966358964,0.07360193,67933.0,67925.0,0.00188]
[1772966359166,0.00148,67932.0,67925.0,0.0004]
[1772966359707,0.00148,67932.0,67925.0,0.0740105]
[1772966359865,0.00148,67941.0,67928.0,0.11608266]
[1772966360076,0.00148,67941.0,67931.0,0.02062136]
[1772966360233,0.00148,67941.0,67932.0,0.02062136]
[1772966360837,0.07379713,67956.0,67933.0,0.11608266]
[1772966361041,0.00148,67955.0,67937.0,0.02062136]
[1772966361344,0.00148,67954.0,67942.0,0.11608266]
[1772966361545,0.00148,67954.0,67943.0,0.02062136]
[1772966362540,0.0735781,67955.0,67943.0,0.02062136]
[1772966363220,0.07527753,67956.0,67945.0,0.02062136]
[1772966364113,0.00148,67955.0,67945.0,0.02062136]
[1772966366220,0.00148,67955.0,67946.0,0.07358784]
[1772966367451,0.00148,67955.0,67946.0,0.0942092]
[1772966368072,0.07357469,67959.0,67946.0,0.0942092]
[1772966368073,0.00022001,67962.0,67947.0,0.02062136]
[1772966368240,0.00022001,67962.0,67950.0,0.02062136]
[1772966368241,0.07527085,67962.0,67950.0,0.02062136]
[1772966368560,0.00170001,67961.0,67950.0,0.02062136]
[1772966368858,0.00170001,67961.0,67951.0,0.02062136]
[1772966369062,0.00022001,67961.0,67951.0,0.02062136]
[1772966369266,0.000235,67967.0,67953.0,0.02062136]
[1772966369438,0.000235,67967.0,67951.0,0.00148]
[1772966369439,0.000235,67967.0,67955.0,0.11608266]
[1772966369642,0.00170001,67968.0,67958.0,0.02062136]
[1772966369822,0.00170001,67968.0,67949.0,0.0735846]
[1772966369823,0.00022001,67972.0,67960.0,0.02062136]
[1772966370023,0.00022001,67972.0,67963.0,0.11608266]
[1772966370227,0.00022001,67972.0,67965.0,0.07356727]
[1772966370439,0.00022001,67972.0,67966.0,0.02062136]
[1772966370700,0.00188,67975.0,67966.0,0.02062136]
[1772966371100,0.0004,67975.0,67966.0,0.02062136]
[1772966371673,0.0004,67975.0,67965.0,0.07356727]
[1772966371674,0.07543696,67975.0,67965.0,0.07356727]
[1772966371874,0.09648642,67975.0,67965.0,0.07368699]
[1772966372228,0.02104946,67974.0,67965.0,0.07368699]
[1772966372377,0.02104946,67974.0,67965.0,0.00011972]
[1772966372582,0.0946075,67974.0,67965.0,0.00011972]
[1772966372782,0.11549282,67971.0,67960.0,0.07357268]
[1772966372983,0.02104946,67970.0,67960.0,0.07357268]
[1772966373422,0.11549282,67967.0,67953.0,0.00148]
[1772966373621,0.00148,67969.0,67949.0,0.0735846]
[1772966373622,0.02104946,67965.0,67949.0,0.0735846]
[1772966373849,0.11549282,67965.0,67950.0,0.00148]
[1772966374009,0.13654228,67965.0,67950.0,0.00148]
[1772966374220,0.11549282,67963.0,67949.0,0.0750646]
[1772966374394,0.09609998,67962.0,67949.0,0.0750646]
[1772966374589,0.00148,67962.0,67950.0,0.02062136]
[1772966375281,0.07355936,67973.0,67952.0,0.02062136]
[1772966375444,0.07367826,67971.0,67955.0,0.12702588]
[1772966375647,0.07515826,67971.0,67957.0,0.02062136]
[1772966375879,0.07367826,67971.0,67957.0,0.02210136]
[1772966376034,0.07515826,67971.0,67957.0,0.02210136]
[1772966376646,0.00011739,67971.0,67958.0,0.07357485]
[1772966376981,0.00011739,67971.0,67959.0,0.02062136]
[1772966378090,0.00159739,67971.0,67959.0,0.02062136]
[1772966378326,0.13654228,67970.0,67958.0,0.07357485]
[1772966380323,0.21010441,67970.0,67958.0,0.07357485]
[1772966380918,0.09461159,67970.0,67958.0,0.07357485]
[1772966384498,0.07356213,67970.0,67958.0,0.0934515]
[1772966384841,0.00148,67969.0,67959.0,0.01987665]
[1772966385142,0.07356213,67970.0,67959.0,0.01987665]
[1772966385336,0.00148,67969.0,67959.0,0.01987665]
[1772966385711,0.00148,67969.0,67960.0,0.07357268]
[1772966387672,0.0750437,67969.0,67960.0,0.07357268]
[1772966387879,0.07526371,67969.0,67960.0,0.07357268]
[1772966389672,0.0737837,67969.0,67960.0,0.07357268]
[1772966389848,0.0752637,67969.0,67961.0,0.01987665]
[1772966390195,0.0737837,67969.0,67961.0,0.01987665]
[1772966390396,0.0752637,67969.0,67961.0,0.01987665]
[1772966390594,0.0737837,67969.0,67961.0,0.01987665]
[1772966390809,0.0752637,67969.0,67961.0,0.01987665]
[1772966393187,0.0752637,67969.0,67959.0,0.0735727]
[1772966393388,0.00022001,67969.0,67959.0,0.01987665]
[1772966393607,0.00022001,67969.0,67960.0,0.01987665]
[1772966394016,0.00011739,67971.0,67960.0,0.01987665]
[1772966394423,0.00062001,67975.0,67960.0,0.12702588]
[1772966394625,0.00062001,67975.0,67963.0,0.01987665]
[1772966394839,0.00062001,67975.0,67965.0,0.01987665]
[1772966395062,0.00062001,67975.0,67966.0,0.01987665]
[1772966395569,0.00022001,67976.0,67968.0,0.01987665]
[1772966395909,0.00022001,67979.0,67968.0,0.01987665]
[1772966396128,0.00170001,67979.0,67968.0,0.01987665]
[1772966396552,0.00022001,67979.0,67968.0,0.01987665]
[1772966396917,0.00022001,67979.0,67967.0,0.07356511]
[1772966396918,0.01965389,67978.0,67966.0,0.07356511]
[1772966397123,0.01965389,67977.0,67966.0,0.07356511]
[1772966397665,0.01965389,67975.0,67962.0,0.07357052]
[1772966398071,0.01965389,67974.0,67962.0,0.07357052]
[1772966398453,0.11549282,67974.0,67962.0,0.07357052]
[1772966398621,0.01965389,67973.0,67962.0,0.07357052]
[1772966399219,0.00148,67973.0,67963.0,0.01987665]
[1772966399621,0.07503968,67973.0,67963.0,0.01987665]
[1772966400180,0.07503968,67973.0,67963.0,0.07356923]
[1772966400406,0.11549282,67971.0,67960.0,0.00011739]
[1772966400525,0.01965389,67968.0,67960.0,0.00011739]
[1772966401146,0.00148,67967.0,67960.0,0.07368997]
[1772966401598,0.07356835,67964.0,67949.0,0.0002]
[1772966401813,0.02113389,67963.0,67949.0,0.02007665]
[1772966402036,0.00148,67963.0,67951.0,0.01987665]
[1772966402330,0.00148,67963.0,67955.0,0.01987665]
[1772966402885,0.00011961,67964.0,67955.0,0.01987665]
[1772966403651,0.00011961,67964.0,67956.0,0.07357702]
[1772966403943,0.00011961,67964.0,67957.0,0.0202187]
[1772966404748,0.02000134,67963.0,67953.0,0.0002]
[1772966404910,0.00011961,67964.0,67951.0,0.07358204]
[1772966404911,0.11496482,67961.0,67951.0,0.07358204]
[1772966405111,0.02148134,67960.0,67951.0,0.07358204]
[1772966405798,0.07357377,67959.0,67949.0,0.07378356]
[1772966406706,0.00148,67958.0,67947.0,0.0202187]
[1772966407744,0.07357593,67957.0,67947.0,0.09380443]
[1772966408806,0.00148,67958.0,67947.0,0.09380443]
[1772966409012,0.07505549,67958.0,67947.0,0.09504117]
[1772966409587,0.07357549,67958.0,67948.0,0.02145544]
[1772966409890,0.07357549,67958.0,67950.0,0.02145544]
[1772966410087,0.07357549,67958.0,67949.0,0.0735846]
[1772966410671,0.07357549,67958.0,67948.0,0.0528442]
[1772966410874,0.09541136,67958.0,67948.0,0.0528442]
[1772966411672,0.09541136,67958.0,67947.0,8.8e-07]
[1772966415135,0.07357549,67958.0,67947.0,8.8e-07]
[1772966416705,0.09541136,67958.0,67947.0,8.8e-07]
[1772966417110,0.09541136,67958.0,67947.0,0.00020088]
[1772966417922,0.07357549,67958.0,67947.0,0.00020088]
[1772966418123,0.07357549,67958.0,67948.0,0.02145544]
[1772966418614,0.07356944,67963.0,67947.0,0.07358676]
[1772966418970,0.07356944,67963.0,67951.0,0.02145544]
[1772966419113,0.00148,67962.0,67951.0,0.02145544]
[1772966419850,0.00148,67961.0,67951.0,0.02145544]
[1772966420408,0.07356944,67963.0,67951.0,0.02145544]
[1772966420610,0.00148,67962.0,67951.0,0.02145544]
[1772966421867,0.07356944,67963.0,67951.0,0.02145544]
[1772966422273,0.00148,67962.0,67951.0,0.02145544]
[1772966422673,0.00148,67962.0,67951.0,0.11625216]
[1772966422841,0.00148,67962.0,67952.0,0.02145544]
[1772966423045,0.07356944,67963.0,67952.0,0.02145544]
[1772966423247,0.00148,67962.0,67952.0,0.02145544]
[1772966424032,0.07356944,67963.0,67953.0,0.02145544]
[1772966424241,0.07504944,67963.0,67953.0,0.02145544]
[1772966424687,0.07504944,67963.0,67952.0,0.13696212]
[1772966424891,0.07504944,67963.0,67953.0,0.02145544]
[1772966425090,0.07356944,67963.0,67953.0,0.02145544]
[1772966425290,0.07504944,67963.0,67953.0,0.02145544]
[1772966425671,0.07356944,67963.0,67953.0,0.02145544]
[1772966425878,0.07504944,67963.0,67952.0,0.0002]
[1772966426263,0.07356944,67963.0,67952.0,0.02165544]
[1772966426472,0.07504944,67963.0,67952.0,0.02165544]
[1772966427257,0.07356944,67963.0,67952.0,0.02165544]
[1772966427898,0.07504944,67963.0,67952.0,0.02165544]
[1772966428301,0.07356944,67963.0,67952.0,0.02165544]
[1772966428484,0.07504944,67963.0,67952.0,0.02165544]
[1772966429401,0.11496482,67962.0,67947.0,0.07458582]
[1772966429577,0.02183587,67961.0,67947.0,0.07458582]
[1772966430476,0.02183587,67961.0,67948.0,0.00148]
[1772966430669,0.07504944,67963.0,67947.0,0.001]
[1772966430670,0.11496482,67960.0,67947.0,0.001]
[1772966430875,0.02183587,67957.0,67947.0,0.001]
[1772966431100,0.02183587,67957.0,67943.0,0.00575]
[1772966431101,0.02183587,67953.0,67943.0,0.00575]
[1772966431307,0.02183587,67950.0,67943.0,0.00575]
[1772966432570,0.12225215,67950.0,67940.0,0.0002]
[1772966432695,0.02183587,67949.0,67940.0,0.0002]
[1772966433420,0.07358568,67948.0,67940.0,0.0002]
[1772966434421,0.09542155,67948.0,67945.0,0.0002]
[1772966434622,0.09542155,67948.0,67937.0,0.07359727]
[1772966434872,0.09542155,67948.0,67938.0,0.00148]
[1772966435222,0.09542155,67948.0,67937.0,0.07359727]
[1772966435416,0.09542155,67948.0,67938.0,0.00148]
[1772966435658,0.07458568,67948.0,67938.0,0.07507607]
[1772966435840,0.07358568,67948.0,67937.0,0.07359727]
[1772966436041,0.07358568,67948.0,67936.0,0.07359866]
[1772966436209,0.07358568,67948.0,67938.0,0.00148]
[1772966437155,0.07358568,67948.0,67937.0,0.02145544]
[1772966437361,0.07358568,67948.0,67937.0,0.02293544]
[1772966438112,0.07358568,67948.0,67937.0,0.00148]
[1772966438650,0.07358568,67948.0,67935.0,0.0003896]
[1772966438651,0.02229822,67946.0,67935.0,0.0003896]
[1772966438851,0.02229822,67945.0,67935.0,0.0003896]
[1772966439119,0.02229822,67943.0,67935.0,0.0003896]
[1772966439625,0.02229822,67943.0,67933.0,0.0002]
[1772966439857,0.07359218,67942.0,67933.0,0.0002]
[1772966440191,0.07359218,67942.0,67933.0,0.000599]
[1772966440592,0.12077215,67940.0,67927.0,0.00148]
[1772966440820,0.12077215,67939.0,67927.0,0.00148]
[1772966440987,0.02229822,67938.0,67927.0,0.00148]
[1772966441632,0.02229822,67938.0,67937.0,0.0002]
[1772966441850,0.09589473,67938.0,67937.0,0.0002]
[1772966442053,0.07507651,67938.0,67937.0,0.0002]
[1772966442711,0.07359651,67938.0,67937.0,0.0002]
[1772966446865,0.07359557,67939.0,67937.0,0.0002]
[1772966450173,0.07359557,67939.0,67937.0,3.211e-05]
[1772966451058,0.07399357,67940.0,67937.0,3.211e-05]
[1772966451256,0.07359557,67939.0,67937.0,3.211e-05]
[1772966451985,0.07380606,67948.0,67938.0,0.02081201]
[1772966452188,0.07380575,67948.0,67938.0,0.02081201]
[1772966452772,0.07380575,67948.0,67940.0,0.02081201]
[1772966455470,0.07380575,67948.0,67940.0,0.09440602]
[1772966455908,0.00022001,67948.0,67940.0,0.09440602]
[1772966456717,0.07358472,67949.0,67941.0,0.02081201]
[1772966457558,0.07358085,67953.0,67941.0,0.07359229]
[1772966457758,0.07358085,67953.0,67942.0,0.02081201]
[1772966458373,0.00022001,67948.0,67942.0,0.02081201]
[1772966458996,0.07379864,67955.0,67942.0,0.02229201]
[1772966459240,0.07379864,67955.0,67931.0,0.0002]
[1772966459433,0.07379864,67955.0,67938.0,0.00148]
[1772966459434,0.02229822,67953.0,67938.0,0.00148]
[1772966459638,0.00148,67952.0,67936.0,0.07527854]
[1772966459971,0.02377822,67952.0,67936.0,0.07527854]
[1772966460172,0.02377822,67952.0,67937.0,0.07362968]
[1772966460321,0.02377822,67952.0,67937.0,0.07510968]
[1772966460530,0.00148,67954.0,67939.0,0.02081201]
[1772966460728,0.00148,67954.0,67941.0,0.02081201]
[1772966460943,0.07379864,67955.0,67943.0,0.02081201]
[1772966461317,0.07379828,67955.0,67944.0,0.12867386]
[1772966461503,0.07379828,67955.0,67945.0,0.02081201]
[1772966461700,0.00022001,67955.0,67947.0,0.02081201]
[1772966462066,0.07379907,67955.0,67947.0,0.02081201]
[1772966462706,0.07357702,67956.0,67947.0,0.02081201]
[1772966463712,0.00148,67958.0,67947.0,0.02081201]
[1772966463922,0.00157388,67958.0,67947.0,0.02081201]
[1772966464289,0.00157388,67958.0,67947.0,0.0943982]
[1772966464717,0.00157388,67958.0,67948.0,0.02142437]
[1772966465708,0.07357593,67957.0,67948.0,0.02142437]
[1772966465913,0.07357593,67957.0,67946.0,0.07358695]
[1772966466236,0.09501579,67957.0,67946.0,0.07358695]
[1772966466620,0.07357593,67957.0,67946.0,0.07358695]
[1772966470112,0.07357593,67957.0,67947.0,0.02009309]
[1772966470113,0.07505593,67957.0,67947.0,0.02009309]
[1772966471585,0.07357593,67957.0,67947.0,0.02009309]
[1772966471799,0.07505593,67957.0,67947.0,0.02009309]
[1772966472000,0.07505593,67957.0,67947.0,0.09367948]
[1772966472172,0.07505593,67957.0,67948.0,0.02009309]
[1772966472375,0.07388982,67958.0,67948.0,0.02009309]
[1772966472728,0.07357347,67960.0,67949.0,0.02009309]
[1772966472940,0.07357347,67960.0,67949.0,0.12968347]
[1772966473217,0.00022001,67965.0,67949.0,0.12968347]
[1772966473218,0.07931271,67970.0,67953.0,0.12810959]
[1772966473438,0.07931271,67970.0,67956.0,0.02009309]
[1772966473855,0.07931271,67970.0,67958.0,0.07357485]
[1772966474082,0.07931271,67970.0,67959.0,0.02009309]
[1772966475472,0.00575,67970.0,67959.0,0.02009309]
[1772966475670,0.07931193,67970.0,67955.0,0.07505485]
[1772966475871,0.02044498,67965.0,67952.0,0.00148]
[1772966476340,0.02044498,67965.0,67951.0,0.00148]
[1772966476935,0.02044498,67965.0,67952.0,0.00148]
[1772966477660,0.02044498,67965.0,67949.0,0.07367848]
[1772966477661,0.02044498,67962.0,67951.0,0.00148]
[1772966477811,0.07357052,67962.0,67949.0,9.388e-05]
[1772966478013,0.07357052,67962.0,67945.0,0.0737888]
[1772966478014,0.12249795,67958.0,67946.0,0.00148]
[1772966478339,0.02192498,67957.0,67946.0,0.00148]
[1772966479251,0.02192498,67957.0,67945.0,0.0002]
[1772966479856,0.12259187,67958.0,67945.0,0.0002]
[1772966479857,0.00157392,67958.0,67945.0,0.02029309]
[1772966480220,0.07357593,67957.0,67946.0,0.07358784]
[1772966482276,0.00157392,67958.0,67948.0,0.07358568]
[1772966482430,9.392e-05,67958.0,67948.0,0.09367877]
[1772966483644,9.392e-05,67958.0,67930.0,0.29198829]
[1772966483803,0.12249795,67954.0,67933.0,0.02009309]
[1772966484062,0.02044498,67951.0,67933.0,0.02009309]
[1772966484242,0.02044498,67947.0,67933.0,0.09369426]
[1772966484602,0.07358568,67948.0,67933.0,0.09369426]
[1772966484807,0.02044498,67946.0,67930.0,0.06056384]
[1772966485011,0.02044498,67946.0,67931.0,0.00148]
[1772966485012,0.02044498,67945.0,67931.0,0.00148]
[1772966485610,0.16289,67942.0,67929.0,0.0002]
[1772966485890,0.07358568,67948.0,67926.0,0.07508919]
[1772966485891,0.02044498,67938.0,67926.0,0.07508919]
[1772966486083,0.16874501,67939.0,67927.0,0.0737874]
[1772966486290,0.16874501,67939.0,67928.0,0.02009309]
[1772966486826,0.07359651,67938.0,67928.0,0.02009309]
[1772966487217,0.16726501,67939.0,67928.0,0.07360703]
[1772966487422,0.07359158,67943.0,67930.0,0.12810959]
[1772966487623,0.07359158,67943.0,67933.0,0.02009309]
[1772966488924,0.07359109,67945.0,67932.0,0.07508288]
[1772966489097,0.00148,67944.0,67932.0,0.02157309]
[1772966490101,0.00148,67944.0,67932.0,0.09517601]
[1772966490765,0.02044498,67946.0,67933.0,0.0002]
[1772966491011,0.07359001,67944.0,67933.0,0.0002]
[1772966491170,0.07507001,67944.0,67933.0,0.0002]
[1772966491370,0.07507001,67944.0,67933.0,0.02029309]
[1772966491570,0.07359001,67944.0,67933.0,0.02029309]
[1772966491790,0.07507001,67944.0,67933.0,0.02029309]
[1772966492611,0.07358676,67950.0,67933.0,0.0002]
[1772966492790,0.00148,67946.0,67935.0,0.02009309]
[1772966493188,0.07358893,67945.0,67935.0,0.02009309]
[1772966493662,0.07358893,67945.0,67933.0,0.0002]
[1772966493793,0.02044498,67944.0,67933.0,0.0002]
[1772966494817,0.02044498,67944.0,67933.0,0.07380161]
[1772966495554,0.07359071,67944.0,67933.0,0.07380161]
[1772966495712,0.07359071,67944.0,67933.0,0.0002]
[1772966495919,0.07359071,67944.0,67934.0,0.02009309]
[1772966497435,0.07381072,67944.0,67933.0,0.0002]
[1772966497637,0.07381072,67944.0,67933.0,0.00168]
[1772966497818,0.0942557,67944.0,67933.0,0.00168]
[1772966498017,0.0957357,67944.0,67933.0,0.00168]
[1772966498222,0.02044498,67943.0,67933.0,0.00168]
[1772966498632,0.02044498,67943.0,67929.0,0.09369935]
[1772966498966,0.02407744,67942.0,67929.0,0.02009309]
[1772966499311,0.02259744,67942.0,67929.0,0.02009309]
[1772966499513,0.07359326,67941.0,67929.0,0.02009309]
[1772966502527,0.07359326,67941.0,67929.0,0.09369916]
[1772966502725,0.07359326,67941.0,67929.0,0.02009309]
[1772966504949,0.07359326,67941.0,67929.0,0.02029309]
[1772966506434,0.07359326,67941.0,67929.0,0.0938993]
[1772966507335,0.07359326,67941.0,67929.0,0.02029309]
[1772966507728,0.07359326,67941.0,67928.0,0.06289193]
[1772966508030,0.07359326,67941.0,67930.0,0.00148]
[1772966508451,0.02259744,67940.0,67930.0,0.00148]
[1772966509480,0.07359543,67939.0,67930.0,0.00148]
[1772966509684,0.02259744,67936.0,67929.0,0.00148]
[1772966510854,0.02259744,67936.0,67925.0,0.00148]
[1772966511061,0.02259744,67934.0,67925.0,0.00148]
[1772966511462,0.07360149,67934.0,67925.0,0.07509029]
[1772966511762,0.09619893,67934.0,67925.0,0.07509029]
[1772966512679,0.02259744,67933.0,67925.0,0.00148]
[1772966513027,0.000399,67936.0,67925.0,0.07529055]
[1772966513303,0.07376888,67948.0,67928.0,0.02220363]
[1772966513463,0.0735868,67947.0,67931.0,0.20207397]
[1772966513659,0.0735868,67947.0,67934.0,0.02220363]
[1772966513860,0.07524888,67948.0,67934.0,0.02220363]
[1772966514063,0.07358749,67947.0,67935.0,0.02220363]
[1772966514492,0.07358837,67946.0,67935.0,0.02220363]
[1772966514885,0.02259744,67943.0,67932.0,0.00148]
[1772966516003,0.07381051,67944.0,67933.0,0.07360193]
[1772966516208,0.00022001,67944.0,67933.0,0.07360193]
[1772966516392,0.02300055,67958.0,67935.0,0.02220363]
[1772966516589,0.02300055,67958.0,67933.0,0.07360193]
[1772966516590,0.07357615,67957.0,67938.0,0.12846988]
[1772966516835,0.07357709,67956.0,67941.0,0.02220363]
[1772966517049,0.07357709,67956.0,67939.0,0.00148]
[1772966517050,0.07357709,67956.0,67944.0,0.02220363]
[1772966517217,0.02259744,67953.0,67939.0,0.02368363]
[1772966518427,0.07379919,67955.0,67941.0,0.15067351]
[1772966519650,0.07379919,67955.0,67941.0,0.12846988]
[1772966519810,0.07379919,67955.0,67941.0,0.15067351]
[1772966520409,0.07397806,67958.0,67944.0,0.02220363]
[1772966520650,0.07397806,67958.0,67947.0,0.02220363]
[1772966522374,0.00022001,67953.0,67948.0,0.07358568]
[1772966522580,0.00022001,67953.0,67948.0,0.09578931]
[1772966524301,0.00022001,67953.0,67948.0,0.02220363]
[1772966524588,0.00022001,67953.0,67948.0,0.09578911]
[1772966526635,0.12361048,67952.0,67930.0,0.07360518]
[1772966526867,0.12361048,67952.0,67936.0,0.02131401]
[1772966526868,0.02166047,67952.0,67936.0,0.02131401]
[1772966527448,0.02314047,67952.0,67936.0,0.02131401]
[1772966527741,0.00022001,67953.0,67937.0,0.12296538]
[1772966527915,0.00022001,67953.0,67940.0,0.02131401]
[1772966528136,0.00022001,67953.0,67943.0,0.12296538]
[1772966528445,0.00022001,67953.0,67945.0,0.0207055]
[1772966528647,0.00022001,67953.0,67946.0,0.07506784]
[1772966529275,0.00022001,67953.0,67947.0,0.0002]
[1772966530319,0.00040311,67958.0,67947.0,0.0209055]
[1772966530740,0.00040311,67958.0,67948.0,0.07358568]
[1772966530976,0.03777135,67974.0,67951.0,0.0207055]
[1772966530977,0.07356656,67966.0,67951.0,0.0207055]
[1772966531152,0.07356656,67966.0,67953.0,0.0207055]
[1772966532291,0.00028458,67965.0,67953.0,0.0207055]
[1772966532850,0.00028458,67965.0,67954.0,0.07357918]
[1772966533048,0.00028458,67965.0,67954.0,0.09428468]
[1772966533369,0.00028458,67965.0,67955.0,0.0207055]
[1772966535092,0.00028458,67965.0,67956.0,0.07357702]
[1772966535476,0.00028458,67965.0,67956.0,0.09428252]
[1772966536096,0.00028458,67965.0,67956.0,0.07357702]
[1772966538526,0.00028458,67965.0,67955.0,0.07357702]
[1772966538753,0.0221243,67964.0,67953.0,0.07357918]
[1772966539100,0.0221243,67964.0,67954.0,0.00148]
[1772966539297,0.0221243,67961.0,67954.0,0.00148]
[1772966539706,0.0221243,67961.0,67953.0,0.07357918]
[1772966539910,0.0221243,67961.0,67953.0,0.00148]
[1772966541531,0.07357185,67961.0,67953.0,0.00148]
[1772966541655,0.0221243,67959.0,67953.0,0.00148]
[1772966543403,0.07357185,67961.0,67953.0,0.0750598]
[1772966543898,0.09569374,67963.0,67953.0,0.0750598]
[1772966544297,0.00022001,67961.0,67953.0,0.0750598]
[1772966547851,0.00022001,67961.0,67945.0,0.19655387]
[1772966547852,0.0221243,67959.0,67931.0,0.0207055]
[1772966548048,0.0221243,67959.0,67927.0,0.0002568]
[1772966548049,0.0221243,67958.0,67941.0,0.07377758]
[1772966548280,0.0221243,67957.0,67941.0,0.07377758]
[1772966548555,0.0221243,67957.0,67942.0,0.00034801]
[1772966548710,0.0221243,67957.0,67942.0,0.00182801]
[1772966548923,0.0221243,67955.0,67942.0,0.00182801]
[1772966549318,0.0236043,67955.0,67942.0,0.00182801]
[1772966549719,0.09570348,67954.0,67942.0,0.00182801]
[1772966550530,0.0221243,67953.0,67942.0,0.00182801]
[1772966551658,0.07357918,67954.0,67942.0,0.00182801]
[1772966558038,0.07357918,67954.0,67941.0,0.02298006]
[1772966558039,0.07357918,67954.0,67941.0,0.00148]
[1772966558214,0.00525872,67952.0,67941.0,0.00148]
[1772966558539,0.1263846,67952.0,67941.0,0.00148]
[1772966558902,0.00034812,67953.0,67941.0,0.00148]
[1772966560252,0.07358135,67952.0,67941.0,0.02387179]
[1772966560458,0.00034812,67951.0,67941.0,0.02387179]
[1772966560986,0.00034812,67951.0,67941.0,0.02407179]
[1772966563763,0.07357087,67962.0,67945.0,0.12406776]
[1772966563961,0.07379195,67961.0,67949.0,0.12406776]
[1772966564198,0.07379195,67961.0,67950.0,0.02227389]
[1772966566026,0.00022001,67961.0,67952.0,0.02220705]
[1772966566935,0.00022001,67961.0,67944.0,0.07358981]
[1772966567145,0.12112588,67960.0,67942.0,0.02220705]
[1772966567342,0.12112588,67960.0,67945.0,0.00148]
[1772966567544,0.00022001,67954.0,67945.0,0.00148]
[1772966567764,0.00022001,67954.0,67944.0,0.00148]
[1772966567765,0.07358026,67953.0,67944.0,0.00148]
[1772966571070,0.12112588,67952.0,67944.0,0.00148]
[1772966571624,0.07358026,67953.0,67944.0,0.00148]
[1772966572427,0.19470614,67953.0,67942.0,0.00148]
[1772966572648,0.19470614,67953.0,67940.0,0.0002]
[1772966572649,0.12112588,67952.0,67940.0,0.0002]
[1772966574178,0.12260588,67952.0,67940.0,0.0002]
[1772966574372,0.12260588,67952.0,67942.0,0.0002]
[1772966574373,0.07358243,67951.0,67942.0,0.0002]